bitfinex-derivatives/quotes_SOLF0:USTF0_20250928
["timestamp","ask_amount","ask_price","bid_price","bid_amount"]
[1759051772778,8.05,200.98,200.9,8.07]
[1759051772981,8.05,200.98,200.91,1.397265]
[1759051775888,8.05,201.02,200.95,1.397265]
[1759051776094,8.05,201.08,200.97,1.397265]
[1759051776295,8.05,201.05,200.96,8.07]
[1759051779086,9.447265,201.05,200.96,8.07]
[1759051779486,8.05,201.05,200.96,8.07]
[1759051780489,8.05,201.05,200.99,1.397265]
[1759051781188,8.05,201.05,201.0,8.07]
[1759051781587,8.05,201.05,200.99,1.397265]
[1759051781897,8.05,201.09,201.02,8.07]
[1759051782192,58.16,201.18,201.06,8.07]
[1759051782193,8.05,201.18,201.06,8.07]
[1759051782393,8.05,201.15,201.06,9.467265]
[1759051782990,1.397265,201.14,201.06,8.07]
[1759051783195,8.05,201.13,201.06,8.07]
[1759051786997,8.05,201.11,201.03,1.397265]
[1759051791601,8.05,201.11,201.04,12.5443]
[1759051791794,8.05,201.11,201.05,1.397265]
[1759051792806,8.05,201.11,201.04,8.07]
[1759051793001,8.05,201.11,201.02,24.997265]
[1759051793303,7.46,201.11,201.02,24.997265]
[1759051794104,8.857265,201.1,201.01,4.4749]
[1759051794402,8.857265,201.1,201.0,9.467265]
[1759051794403,1.397265,201.1,201.0,9.467265]
[1759051794608,7.46,201.09,201.0,9.467265]
[1759051794805,1.397265,201.1,201.0,9.467265]
[1759051795208,7.46,201.09,201.0,9.467265]
[1759051795506,7.46,201.07,201.0,8.07]
[1759051797405,7.46,201.07,201.01,4.475]
[1759051800711,7.46,201.07,201.01,5.872265]
[1759051801710,7.46,201.07,201.01,1.397265]
[1759051802304,7.46,201.07,200.98,122.02]
[1759051802305,1.397265,201.14,201.04,7.55]
[1759051802518,7.46,201.13,201.06,7.55]
[1759051803612,7.46,201.13,201.07,1.397265]
[1759051803916,7.46,201.13,201.08,7.55]
[1759051804113,7.46,201.16,201.09,7.55]
[1759051804415,7.46,201.16,201.11,1.397265]
[1759051804616,84.70047063,201.27,201.11,1.397265]
[1759051804617,142.11836684,201.26,201.15,1.397265]
[1759051804806,3.4177146,201.25,201.17,1.397265]
[1759051805011,3.4177146,201.24,201.17,8.947265]
[1759051805211,3.42188181,201.23,201.17,8.947265]
[1759051805409,136.57780545,201.26,201.17,8.947265]
[1759051805615,3.41976111,201.25,201.17,8.947265]
[1759051805916,141.04730545,201.26,201.17,8.947265]
[1759051806119,1.397265,201.24,201.13,7.55]
[1759051806315,3.42243106,201.23,201.15,1.397265]
[1759051806514,3.42243106,201.22,201.15,1.397265]
[1759051806714,7.46,201.21,201.15,1.397265]
[1759051807315,11.9306,201.21,201.15,1.397265]
[1759051809522,7.46,201.21,201.15,1.397265]
[1759051810521,7.46,201.21,201.1,86.76]
[1759051810522,8.857265,201.21,201.1,86.76]
[1759051810715,7.7,201.19,201.13,1.397265]
[1759051811619,12.1717,201.17,201.09,1.397265]
[1759051811820,7.7,201.17,201.12,7.72]
[1759051812026,7.7,201.17,201.11,9.117265]
[1759051812728,7.7,201.17,201.11,7.72]
[1759051813420,69.5331,201.24,201.09,126.5131]
[1759051813421,7.7,201.22,201.13,7.72]
[1759051813621,7.7,201.22,201.14,1.397265]
[1759051815428,7.7,201.22,201.13,7.72]
[1759051815826,1.397265,201.21,201.13,7.72]
[1759051817624,1.397265,201.21,201.13,12.1922]
[1759051819730,5.867865,201.21,201.13,12.1922]
[1759051819932,7.7,201.2,201.13,7.72]
[1759051820128,1.397265,201.19,201.13,7.72]
[1759051820319,7.7,201.18,201.13,7.72]
[1759051820521,7.7,201.19,201.13,7.72]
[1759051820722,7.7,201.22,201.14,7.72]
[1759051822130,7.7,201.22,201.16,7.72]
[1759051822636,7.7,201.26,201.16,7.72]
[1759051822936,7.7,201.26,201.16,122.16]
[1759051823127,7.7,201.26,201.17,122.16]
[1759051823328,7.7,201.26,201.18,7.72]
[1759051823633,7.7,201.26,201.18,12.1913]
[1759051825430,12.1697,201.26,201.18,12.1913]
[1759051825634,79.40065985,201.26,201.15,8.04]
[1759051825836,7.59,201.24,201.15,8.04]
[1759051826035,72.9652548,201.25,201.15,8.04]
[1759051826036,4.4702,201.23,201.15,8.04]
[1759051826233,7.59,201.22,201.15,8.04]
[1759051826734,4.4708,201.21,201.15,8.04]
[1759051827033,2.17445985,201.22,201.11,12.5128]
[1759051827235,7.59,201.21,201.11,12.5128]
[1759051828636,4.4712,201.19,201.11,12.5128]
[1759051828839,7.59,201.18,201.11,8.04]
[1759051829341,12.0615,201.18,201.11,8.04]
[1759051830135,7.59,201.18,201.11,8.04]
[1759051831240,12.0604,201.22,201.11,8.04]
[1759051831440,12.0604,201.22,201.12,2.17445985]
[1759051831642,12.0604,201.22,201.13,8.04]
[1759051832539,12.0604,201.22,201.15,4.4718]
[1759051832746,12.0604,201.22,201.15,12.5118]
[1759051832940,7.59,201.26,201.16,8.04]
[1759051833133,69.5302,201.25,201.16,8.04]
[1759051833442,7.59,201.2,201.12,8.04]
[1759051833841,7.59,201.2,201.12,12.5124]
[1759051834543,4.4712,201.19,201.12,12.5124]
[1759051835750,7.59,201.2,201.12,12.5124]
[1759051836744,7.59,201.2,201.13,4.4722]
[1759051837350,12.0602,201.23,201.15,8.04]
[1759051838240,12.0602,201.23,201.15,12.5118]
[1759051839450,4.4706,201.22,201.15,12.5118]
[1759051841645,4.4708,201.21,201.15,8.04]
[1759051842153,12.0608,201.21,201.15,8.04]
[1759051844557,69.5271,201.26,201.11,8.04]
[1759051844558,7.59,201.2,201.11,8.04]
[1759051845254,4.4714,201.18,201.11,12.5127]
[1759051847159,7.59,201.24,201.12,8.04]
[1759051847359,3.44858117,201.23,201.15,8.04]
[1759051847546,5.54056139,201.33,201.17,71.73095985]
[1759051847747,3.44950499,201.32,201.22,8.04]
[1759051847955,3.44950499,201.31,201.23,2.17445985]
[1759051848159,3.44950499,201.3,201.24,8.04]
[1759051848358,8.18117916,201.34,201.24,8.04]
[1759051848554,3.44977469,201.33,201.25,4.4695]
[1759051848760,3.44977469,201.32,201.25,4.4695]
[1759051849058,3.44977469,201.31,201.25,4.4695]
[1759051849360,7.59,201.38,201.27,8.04]
[1759051849560,3.44993796,201.37,201.27,8.04]
[1759051849758,3.44993796,201.36,201.27,8.04]
[1759051849954,11.03993796,201.35,201.27,8.04]
[1759051850258,7.59,201.35,201.27,8.04]
[1759051850955,4.4679,201.34,201.27,8.04]
[1759051860471,4.4681,201.33,201.27,8.04]
[1759051862370,7.47,201.33,201.24,7.84]
[1759051863565,11.9381,201.33,201.25,7.84]
[1759051864472,4.4675,201.35,201.27,7.84]
[1759051865572,4.4675,201.35,201.28,7.84]
[1759051866980,4.4675,201.35,201.29,7.84]
[1759051867172,4.4671,201.37,201.29,7.84]
[1759051868381,4.4671,201.37,201.29,12.3087]
[1759051868681,4.4674,201.36,201.29,12.3087]
[1759051870178,8.05,201.35,201.29,12.3087]
[1759051870685,12.5176,201.35,201.29,12.3087]
[1759051870887,8.05,201.35,201.24,8.05]
[1759051871084,8.05,201.35,201.26,8.05]
[1759051871586,4.4681,201.33,201.26,12.5193]
[1759051872090,4.4681,201.33,201.27,8.05]
[1759051874287,4.4681,201.33,201.27,12.5191]
[1759051874676,12.5176,201.35,201.27,12.5191]
[1759051874980,12.5176,201.35,201.27,4.4691]
[1759051875181,8.05,201.35,201.29,8.05]
[1759051875788,4.4671,201.37,201.29,8.05]
[1759051879485,4.4671,201.37,201.26,8.05]
[1759051880290,8.05,201.38,201.32,8.05]
[1759051880690,9.4388975,201.38,201.32,8.05]
[1759051881287,8.05,201.35,201.27,8.05]
[1759051881493,1.3888975,201.33,201.27,8.05]
[1759051882489,13.9064975,201.35,201.28,8.05]
[1759051884396,8.05,201.35,201.26,1.3888975]
[1759051884591,8.05,201.35,201.25,69.528]
[1759051884592,7.67,201.38,201.25,7.89]
[1759051884796,69.4688,201.43,201.25,7.89]
[1759051884797,1.3888975,201.35,201.28,7.89]
[1759051885292,7.67,201.32,201.26,122.1]
[1759051885495,7.67,201.32,201.25,7.89]
[1759051886695,4.4686,201.31,201.25,7.89]
[1759051888794,4.4689,201.29,201.25,7.89]
[1759051889098,12.1389,201.29,201.22,73.77646111]
[1759051889499,12.1389,201.29,201.22,78.24666111]
[1759051889799,12.1389,201.29,201.22,13.16666111]
[1759051890392,12.1389,201.29,201.22,27.82836869]
[1759051891300,7.67,201.29,201.23,4.47]
[1759051891701,7.67,201.29,201.23,12.36]
[1759051892998,12.139,201.29,201.23,7.89]
[1759051893598,1.3888975,201.27,201.19,23.06951447]
[1759051893899,7.67,201.29,201.19,7.89]
[1759051894204,1.3888975,201.27,201.19,7.89]
[1759051894997,1.3888975,201.27,201.19,12.3609]
[1759051895199,4.4692,201.28,201.19,7.89]
[1759051895702,9.0588975,201.29,201.22,7.89]
[1759051895899,69.5026,201.33,201.22,7.89]
[1759051895900,1.3888975,201.31,201.22,7.89]
[1759051896105,9.0588975,201.33,201.22,9.2788975]
[1759051896303,3.45743525,201.32,201.22,9.2788975]
[1759051896497,3.45743525,201.31,201.22,9.2788975]
[1759051896703,9.0588975,201.33,201.22,9.2788975]
[1759051897004,4.4682,201.32,201.25,7.89]
[1759051897503,4.4682,201.32,201.25,12.3596]
[1759051897806,7.67,201.33,201.25,7.89]
[1759051898307,4.4677,201.35,201.28,7.89]
[1759051898508,0.52836289,201.4,201.3,1.3888975]
[1759051898699,3.45772129,201.39,201.32,9.2788975]
[1759051899003,3.45772129,201.38,201.32,9.2788975]
[1759051899199,8.19836289,201.4,201.32,7.89]
[1759051899406,3.45629518,201.39,201.32,7.89]
[1759051899600,14.05366039,201.4,201.32,12.358]
[1759051899804,3.45629518,201.39,201.32,12.358]
[1759051900000,14.05366039,201.4,201.32,12.358]
[1759051900205,3.45714082,201.39,201.32,12.358]
[1759051900402,9.58726039,201.4,201.32,7.89]
[1759051900603,7.67,201.37,201.3,19.7]
[1759051901607,12.1372,201.37,201.3,19.7]
[1759051904212,4.4675,201.36,201.29,1.3888975]
[1759051904410,4.4675,201.36,201.29,64.0888975]
[1759051905809,4.4675,201.36,201.29,1.3888975]
[1759051906007,4.4675,201.36,201.29,80.8488975]
[1759051906609,7.67,201.37,201.3,7.89]
[1759051908111,4.467,201.38,201.3,7.89]
[1759051908612,9.58726039,201.4,201.29,80.8488975]
[1759051908613,14.05366039,201.4,201.33,7.89]
[1759051909313,12.66476289,201.4,201.33,7.89]
[1759051910013,12.1364,201.4,201.33,7.89]
[1759051912919,12.1368,201.38,201.32,7.89]
[1759051913314,7.67,201.38,201.32,7.89]
[1759051914621,4.4672,201.37,201.32,7.89]
[1759051914816,7.53,201.36,201.32,7.89]
[1759051915120,4.4672,201.37,201.3,126.4286]
[1759051915419,4.4672,201.37,201.31,8.16]
[1759051916420,4.4672,201.37,201.31,9.5488975]
[1759051917921,7.53,201.39,201.32,8.16]
[1759051919419,11.9968,201.39,201.32,12.628]
[1759051919920,4.4662,201.41,201.35,1.3888975]
[1759051921020,4.4662,201.41,201.34,8.16]
[1759051921213,4.4662,201.41,201.34,9.5488975]
[1759051922918,7.53,201.42,201.36,8.16]
[1759051923125,7.53,201.46,201.36,9.5488975]
[1759051923319,7.53,201.46,201.39,8.16]
[1759051924717,4.4657,201.44,201.38,9.5488975]
[1759051925114,4.4657,201.44,201.38,8.16]
[1759051927322,11.9958,201.43,201.37,40.5688975]
[1759051928918,70.8504975,201.45,201.37,8.16]
[1759051929123,70.8504975,201.45,201.33,4.4679]
[1759051929124,7.53,201.42,201.34,1.3888975]
[1759051930720,7.53,201.42,201.26,69.5259]
[1759051930721,7.92,201.38,201.31,1.3888975]
[1759051931714,4.4672,201.37,201.31,1.3888975]
[1759051932723,7.92,201.38,201.33,1.3888975]
[1759051932919,7.92,201.44,201.37,1.3888975]
[1759051933324,4.4658,201.43,201.37,1.3888975]
[1759051933721,7.92,201.44,201.37,1.3888975]
[1759051934926,7.92,201.44,201.36,9.3288975]
[1759051935127,9.3088975,201.44,201.36,9.3288975]
[1759051936617,4.4661,201.42,201.36,9.3288975]
[1759051938227,4.4661,201.42,201.36,7.94]
[1759051938424,4.4663,201.41,201.36,7.94]
[1759051938626,12.3863,201.41,201.34,5.8564975]
[1759051940228,7.92,201.41,201.34,1.3888975]
[1759051940425,7.92,201.41,201.33,7.94]
[1759051941624,4.4669,201.38,201.3,40.9485]
[1759051941831,12.3869,201.38,201.34,7.94]
[1759051946039,4.4669,201.38,201.34,7.94]
[1759051946338,11.9369,201.38,201.34,7.94]
[1759051947037,7.47,201.38,201.33,7.52]
[1759051947232,7.47,201.38,201.32,4.468]
[1759051947440,7.47,201.38,201.33,7.52]
[1759051947736,7.47,201.38,201.32,11.988]
[1759051949140,7.47,201.38,201.33,4.4678]
[1759051949338,4.4663,201.41,201.34,7.52]
[1759051949530,7.47,201.42,201.34,7.52]
[1759051949735,3.444219,201.41,201.34,7.52]
[1759051949935,7.47,201.42,201.34,7.52]
[1759051950136,3.4442115,201.41,201.34,7.52]
[1759051950337,7.47,201.42,201.34,7.52]
[1759051950537,4.4665,201.4,201.34,7.52]
[1759051952247,11.9365,201.4,201.34,7.52]
[1759051959049,7.47,201.42,201.34,7.52]
[1759051959254,7.47,201.4,201.34,7.52]
[1759051959750,11.9365,201.4,201.34,7.52]
[1759051959948,7.47,201.4,201.34,7.52]
[1759051960447,11.9369,201.38,201.31,131.52972751]
[1759051961048,7.47,201.38,201.32,4.468]
[1759051961443,7.47,201.38,201.33,7.52]
[1759051962152,7.47,201.38,201.32,11.988]
[1759051964252,4.4665,201.4,201.33,121.84]
[1759051964454,7.47,201.39,201.33,129.36]
[1759051967060,11.9367,201.39,201.33,129.36]
[1759051968361,11.9367,201.39,201.33,7.52]
[1759051968657,11.9367,201.39,201.33,129.34]
[1759051969458,11.9367,201.39,201.34,7.52]
[1759051969759,11.9367,201.39,201.33,121.82]
[1759051970052,4.4667,201.39,201.33,121.82]
[1759051970559,7.47,201.38,201.35,7.52]
[1759051972957,4.4662,201.41,201.35,7.52]
[1759051973153,3.44555632,201.4,201.35,7.52]
[1759051973348,4.4662,201.41,201.35,7.52]
[1759051973552,3.44602869,201.4,201.34,121.82]
[1759051973748,4.4662,201.41,201.35,7.64]
[1759051973953,3.44602869,201.4,201.35,7.64]
[1759051974159,4.4662,201.41,201.35,7.64]
[1759051974453,3.44607724,201.4,201.34,121.82]
[1759051974654,4.4662,201.41,201.35,7.64]
[1759051974856,3.44607724,201.4,201.35,7.64]
[1759051975052,4.4662,201.41,201.35,7.64]
[1759051975254,3.44527662,201.4,201.34,126.2876]
[1759051975449,76.8878,201.43,201.33,7.64]
[1759051975756,7.42,201.41,201.33,49.0]
[1759051975958,3.44379853,201.4,201.33,49.0]
[1759051976156,7.42,201.41,201.33,49.0]
[1759051976455,3.44399608,201.4,201.33,49.0]
[1759051976660,7.42,201.39,201.33,7.64]
[1759051977558,4.467,201.38,201.33,7.64]
[1759051977759,7.42,201.39,201.33,7.64]
[1759051978261,7.42,201.37,201.3,39.1]
[1759051978460,3.4439627,201.36,201.3,39.1]
[1759051978755,7.42,201.37,201.3,39.1]
[1759051979055,11.8876,201.35,201.31,7.64]
[1759051979259,11.8876,201.35,201.3,39.1]
[1759051979952,4.4671,201.37,201.31,7.64]
[1759051980156,3.44250546,201.36,201.3,43.5684]
[1759051980357,4.4671,201.37,201.31,7.64]
[1759051980557,3.44266476,201.36,201.3,43.5684]
[1759051980855,4.4671,201.37,201.31,7.64]
[1759051981055,10.86266476,201.36,201.31,7.64]
[1759051981257,7.42,201.36,201.3,43.5684]
[1759051981462,11.8874,201.36,201.31,7.64]
[1759051981861,11.8874,201.36,201.3,43.5684]
[1759051982363,7.42,201.35,201.3,43.5684]
[1759051982856,7.42,201.35,201.31,7.64]
[1759051983162,7.42,201.35,201.3,43.5684]
[1759051983662,7.42,201.35,201.3,39.1]
[1759051984060,4.4674,201.36,201.31,7.64]
[1759051984562,7.42,201.35,201.31,7.64]
[1759051984864,7.42,201.33,201.26,4.4694]
[1759051985064,7.42,201.33,201.27,110.3]
[1759051985364,7.42,201.33,201.27,7.64]
[1759051985865,7.42,201.33,201.26,126.2694]
[1759051985866,4.4683,201.32,201.26,129.44]
[1759051986364,4.4683,201.32,201.26,121.8]
[1759051986561,4.4683,201.32,201.27,7.64]
[1759051987262,7.42,201.31,201.26,121.8]
[1759051987764,7.42,201.31,201.27,7.64]
[1759051987967,7.42,201.31,201.26,121.8]
[1759051988155,7.42,201.31,201.27,7.64]
[1759051988359,7.42,201.31,201.24,7.64]
[1759051988561,7.42,201.31,201.24,129.44]
[1759051989064,7.42,201.36,201.25,7.64]
[1759051989261,7.42,201.4,201.3,69.512]
[1759051989460,5.54056139,201.46,201.3,69.512]
[1759051989461,7.42,201.45,201.32,7.64]
[1759051989661,3.4364595,201.44,201.32,7.64]
[1759051989864,10.8564595,201.43,201.32,7.64]
[1759051990066,3.4364595,201.42,201.32,7.64]
[1759051990267,3.4364595,201.41,201.34,7.55]
[1759051990468,7.42,201.43,201.34,7.55]
[1759051990671,3.4363934,201.42,201.34,129.35]
[1759051990968,3.4363934,201.41,201.34,129.35]
[1759051991264,7.42,201.43,201.36,7.55]
[1759051991969,7.42,201.43,201.36,12.0171]
[1759051995173,4.4656,201.44,201.37,7.55]
[1759051995860,4.4656,201.44,201.31,2.16972751]
[1759051995861,69.471,201.42,201.31,7.55]
[1759051996067,11.49740622,201.41,201.31,129.33]
[1759051996372,8.07,201.41,201.31,129.33]
[1759051997668,4.4668,201.39,201.31,129.33]
[1759051998774,8.07,201.41,201.31,129.33]
[1759051998775,2.16972751,201.44,201.33,7.55]
[1759051998967,3.42722094,201.43,201.33,7.55]
[1759051999168,3.42722094,201.42,201.33,7.55]
[1759051999467,8.07,201.45,201.33,7.55]
[1759051999666,4.4657,201.43,201.34,4.4675]
[1759051999863,4.4657,201.43,201.35,7.55]
[1759052000570,4.4657,201.43,201.35,8.93806617]
[1759052005475,4.4657,201.43,201.35,13.40536617]
[1759052005678,4.4657,201.43,201.36,7.76]
[1759052006080,4.4657,201.43,201.36,12.2271]
[1759052021389,12.4457,201.43,201.36,12.2271]
[1759052021890,12.4457,201.43,201.37,7.76]
[1759052022285,4.4661,201.42,201.37,7.76]
[1759052022886,12.4461,201.42,201.37,7.76]
[1759052023190,12.4461,201.42,201.36,4.4671]
[1759052023389,12.4461,201.42,201.37,7.76]
[1759052023584,12.4461,201.42,201.36,4.4671]
[1759052024492,12.4461,201.42,201.37,7.76]
[1759052025194,12.4461,201.42,201.36,4.4671]
[1759052025492,12.4461,201.42,201.37,7.76]
[1759052026090,12.4461,201.42,201.36,4.4671]
[1759052026387,4.4661,201.42,201.36,4.4671]
[1759052026591,7.98,201.41,201.36,4.4671]
[1759052026782,7.98,201.41,201.35,1.38806617]
[1759052026987,12.4461,201.42,201.36,7.76]
[1759052032291,4.4663,201.41,201.35,5.85546617]
[1759052032686,7.98,201.4,201.35,5.85546617]
[1759052032895,12.4463,201.41,201.35,13.61546617]
[1759052033197,12.4463,201.41,201.35,127.53546617]
[1759052033991,12.4463,201.41,201.36,7.97]
[1759052034192,12.4463,201.41,201.35,127.53546617]
[1759052034498,7.79,201.4,201.36,7.97]
[1759052034701,7.79,201.4,201.35,127.53546617]
[1759052035201,7.79,201.4,201.36,7.97]
[1759052035498,7.79,201.4,201.35,127.53546617]
[1759052035693,7.79,201.4,201.36,7.97]
[1759052035889,7.79,201.4,201.35,127.53546617]
[1759052036092,7.79,201.4,201.36,7.97]
[1759052036291,12.2563,201.41,201.35,126.1474]
[1759052036592,12.2563,201.41,201.36,7.97]
[1759052036790,7.79,201.45,201.39,7.97]
[1759052036998,7.79,201.49,201.42,7.97]
[1759052037195,3.43218971,201.48,201.42,7.97]
[1759052037492,3.43218971,201.47,201.41,123.04806617]
[1759052037693,3.43218971,201.46,201.42,7.97]
[1759052037895,3.43218971,201.45,201.42,7.97]
[1759052038203,12.2545,201.49,201.43,7.97]
[1759052038395,12.2545,201.49,201.43,1.38806617]
[1759052038396,3.43118826,201.48,201.43,1.38806617]
[1759052038695,3.43118826,201.47,201.44,7.97]
[1759052038898,7.79,201.49,201.44,7.97]
[1759052039095,3.43118052,201.48,201.43,1.38806617]
[1759052039292,7.79,201.49,201.43,1.38806617]
[1759052039492,3.43005603,201.48,201.43,1.38806617]
[1759052039693,7.79,201.5,201.44,7.97]
[1759052039895,3.43005603,201.49,201.44,7.97]
[1759052040094,3.43005603,201.48,201.44,7.97]
[1759052040394,7.79,201.5,201.44,7.97]
[1759052040595,3.42993217,201.49,201.44,7.97]
[1759052040801,7.79,201.5,201.44,7.97]
[1759052041000,3.43015131,201.49,201.43,5.85366617]
[1759052041198,3.43059836,201.48,201.44,7.97]
[1759052041395,7.79,201.5,201.44,7.97]
[1759052041594,3.42936171,201.49,201.44,7.97]
[1759052041792,7.79,201.5,201.44,7.97]
[1759052041992,4.81742788,201.49,201.43,37.08]
[1759052042201,7.79,201.48,201.43,37.08]
[1759052042398,9.17806617,201.49,201.43,45.05]
[1759052042995,13.64266617,201.49,201.43,45.05]
[1759052044301,1.38806617,201.51,201.45,7.97]
[1759052044496,11.21750165,201.5,201.44,4.4655]
[1759052044698,7.79,201.5,201.44,4.4655]
[1759052045099,7.79,201.5,201.45,7.97]
[1759052045496,4.4639,201.52,201.45,7.97]
[1759052045700,11.21654957,201.51,201.45,7.97]
[1759052045903,3.42654957,201.5,201.44,4.4655]
[1759052046095,9.17806617,201.51,201.41,16.59717991]
[1759052046298,1.38806617,201.49,201.41,58.44717991]
[1759052046494,7.79,201.48,201.41,58.44717991]
[1759052046694,13.64306617,201.47,201.41,7.97]
[1759052047594,12.2552,201.46,201.4,129.57]
[1759052049003,7.79,201.44,201.38,121.6]
[1759052049214,7.79,201.42,201.37,7.97]
[1759052049413,7.79,201.39,201.34,7.97]
[1759052049723,7.79,201.39,201.35,42.31]
[1759052050106,7.79,201.39,201.36,7.91]
[1759052050601,7.72,201.38,201.34,46.86]
[1759052050802,7.72,201.38,201.34,54.77]
[1759052051413,1.38806617,201.41,201.28,7.91]
[1759052051414,7.72,201.35,201.28,7.91]
[1759052051711,1.38806617,201.34,201.28,7.91]
[1759052052012,13.57596617,201.34,201.28,7.91]
[1759052052309,9.10806617,201.34,201.28,7.91]
[1759052052510,7.72,201.31,201.25,7.91]
[1759052052710,7.72,201.31,201.25,144.19929763]
[1759052053013,7.72,201.31,201.25,129.51]
[1759052053304,7.72,201.31,201.25,7.91]
[1759052055515,7.72,201.31,201.25,129.51]
[1759052055710,7.72,201.31,201.25,7.91]
[1759052058210,4.4687,201.3,201.25,7.91]
[1759052058409,4.4687,201.3,201.24,0.75700598]
[1759052058410,5.85676617,201.3,201.24,0.75700598]
[1759052059110,7.72,201.29,201.24,0.75700598]
[1759052059714,5.85676617,201.3,201.24,0.75700598]
[1759052060212,7.72,201.29,201.24,0.75700598]
[1759052060411,1.38806617,201.3,201.24,0.75700598]
[1759052060612,7.72,201.3,201.24,0.75700598]
[1759052061917,4.4688,201.29,201.24,0.75700598]
[1759052062217,7.72,201.28,201.24,0.75700598]
[1759052062609,4.4688,201.29,201.24,0.75700598]
[1759052062813,7.72,201.28,201.24,0.75700598]
[1759052063010,7.72,201.26,201.22,121.64]
[1759052063212,7.37,201.26,201.22,121.64]
[1759052063512,4.4693,201.27,201.22,121.64]
[1759052063824,7.37,201.26,201.22,129.01]
[1759052064114,7.37,201.26,201.23,7.37]
[1759052066417,4.469,201.29,201.23,7.37]
[1759052066418,11.839,201.29,201.23,7.37]
[1759052067029,7.37,201.29,201.23,7.37]
[1759052067321,4.4684,201.31,201.23,7.37]
[1759052067519,4.4684,201.31,201.24,4.4699]
[1759052067720,4.4684,201.31,201.25,7.37]
[1759052070826,4.4684,201.31,201.2,15.17279939]
[1759052070827,7.37,201.3,201.2,15.17279939]
[1759052071016,69.5126,201.3,201.19,368.65]
[1759052071325,7.37,201.29,201.19,368.65]
[1759052071520,7.37,201.27,201.19,368.65]
[1759052071720,7.37,201.27,201.19,361.28]
[1759052071921,7.37,201.27,201.2,7.37]
[1759052072325,4.469,201.29,201.23,7.37]
[1759052072621,4.469,201.29,201.23,129.01]
[1759052073028,4.4692,201.28,201.24,7.37]
[1759052073526,11.8392,201.28,201.24,7.37]
[1759052076431,71.67446484,201.33,201.24,7.37]
[1759052076432,4.4686,201.31,201.24,7.37]
[1759052076732,7.37,201.32,201.24,7.37]
[1759052077137,7.37,201.3,201.23,129.01]
[1759052078632,71.67446484,201.33,201.24,7.37]
[1759052078633,11.8392,201.28,201.24,7.37]
[1759052079223,11.8392,201.28,201.23,121.64]
[1759052079429,11.8392,201.28,201.24,7.37]
[1759052079628,11.8392,201.28,201.23,121.64]
[1759052080135,11.8392,201.28,201.24,7.37]
[1759052080329,11.8392,201.28,201.23,121.64]
[1759052081232,11.8392,201.28,201.24,7.37]
[1759052081431,11.8392,201.28,201.23,121.64]
[1759052082133,11.8392,201.28,201.24,7.37]
[1759052082934,11.8392,201.28,201.23,121.64]
[1759052083135,4.4686,201.3,201.24,7.37]
[1759052084634,4.4686,201.3,201.24,11.8398]